[Event "Titled Tuesday Blitz July 25 Late 2023"]
[White "Osiecki, Stanislaw"]
[Black "Kostiukov, Alexandr"]
[WhiteFideId "1102990"]
[BlackFideId "14108100"]
[WhiteElo "2042"]
[BlackElo "2344"]
[Result "1-0"]
[Round "5"]
[TimeControl "180+2"]
[Date "2023.07.25"]
[WhiteClock "0:00:56"]
[BlackClock "0:00:00"]
[Board "162"]

1. e4 {[%clk 0:02:31]}  c5 {[%clk 0:02:57]} 2. c3 {[%clk 0:02:31]}  g6 {[%clk 0:02:57]} 3. d4 {[%clk 0:02:31]}  cxd4 {[%clk 0:02:56]} 4. cxd4 {[%clk 0:02:30]}  d5 {[%clk 0:02:57]} 5. exd5 {[%clk 0:02:30]}  Nf6 {[%clk 0:02:56]} 6. Nc3 {[%clk 0:02:29]}  Nxd5 {[%clk 0:02:56]} 7. Nxd5 {[%clk 0:02:29]}  Qxd5 {[%clk 0:02:56]} 8. Nf3 {[%clk 0:02:30]}  Bg7 {[%clk 0:02:53]} 9. h3 {[%clk 0:02:27]}  O-O {[%clk 0:02:49]} 10. Be2 {[%clk 0:02:26]}  Nc6 {[%clk 0:02:49]} 11. Be3 {[%clk 0:02:26]}  Rd8 {[%clk 0:02:47]} 12. O-O {[%clk 0:02:25]}  Nxd4 {[%clk 0:02:46]} 13. Nxd4 {[%clk 0:02:22]}  Bxd4 {[%clk 0:02:46]} 14. Bxd4 {[%clk 0:02:22]}  Qxd4 {[%clk 0:02:46]} 15. Qc2 {[%clk 0:02:11]}  Bf5 {[%clk 0:02:44]} 16. Qb3 {[%clk 0:02:07]}  Qb6 {[%clk 0:02:36]} 17. Qxb6 {[%clk 0:02:04]}  axb6 {[%clk 0:02:36]} 18. Bf3 {[%clk 0:02:04]}  Rd2 {[%clk 0:02:28]} 19. Rfe1 {[%clk 0:01:52]}  Kf8 {[%clk 0:02:07]} 20. Re2 {[%clk 0:01:46]}  Rxe2 {[%clk 0:02:06]} 21. Bxe2 {[%clk 0:01:46]}  Rc8 {[%clk 0:01:59]} 22. Bf3 {[%clk 0:01:41]}  Rc7 {[%clk 0:01:53]} 23. b4 {[%clk 0:01:36]}  Rc4 {[%clk 0:01:43]} 24. a3 {[%clk 0:01:33]}  Be4 {[%clk 0:01:42]} 25. Bxe4 {[%clk 0:01:31]}  Rxe4 {[%clk 0:01:42]} 26. Rc1 {[%clk 0:01:31]}  e6 {[%clk 0:00:36]} 27. Rc7 {[%clk 0:01:28]}  Re1+ {[%clk 0:00:35]} 28. Kh2 {[%clk 0:01:27]}  Ra1 {[%clk 0:00:33]} 29. Rxb7 {[%clk 0:01:27]}  Rxa3 {[%clk 0:00:31]} 30. Rxb6 {[%clk 0:01:27]}  Ra2 {[%clk 0:00:31]} 31. f3 {[%clk 0:01:25]}  h5 {[%clk 0:00:30]} 32. h4 {[%clk 0:01:25]}  Kg7 {[%clk 0:00:28]} 33. Rb7 {[%clk 0:01:23]}  Kf6 {[%clk 0:00:26]} 34. Kg3 {[%clk 0:01:22]}  e5 {[%clk 0:00:26]} 35. b5 {[%clk 0:01:18]}  Ke6 {[%clk 0:00:24]} 36. Rb8 {[%clk 0:01:15]}  Rb2 {[%clk 0:00:17]} 37. b6 {[%clk 0:01:14]}  f6 {[%clk 0:00:17]} 38. b7 {[%clk 0:01:12]}  Kf5 {[%clk 0:00:17]} 39. Kh3 {[%clk 0:01:07]}  Rb1 {[%clk 0:00:12]} 40. Kg3 {[%clk 0:01:06]}  Rb6 {[%clk 0:00:00]} 41. Kh3 {[%clk 0:00:56]} 1-0


[Site "https://www.chess.com"]

[Event "Titled Tuesday Blitz July 25 Late 2023"]
[White "Manon-og, Ramon Jr."]
[Black "zano2023"]
[WhiteFideId "5200776"]
[WhiteElo "2328"]
[BlackElo "2013"]
[Result "0-1"]
[Round "5"]
[TimeControl "180+2"]
[Date "2023.07.25"]
[WhiteClock "0:00:15"]
[BlackClock "0:00:27"]
[Board "163"]

1. d4 {[%clk 0:03:00]}  e5 {[%clk 0:02:59]} 2. dxe5 {[%clk 0:03:00]}  d6 {[%clk 0:03:00]} 3. exd6 {[%clk 0:03:00]}  Bxd6 {[%clk 0:03:00]} 4. Nf3 {[%clk 0:02:59]}  Bg4 {[%clk 0:03:00]} 5. e3 {[%clk 0:02:54]}  Nf6 {[%clk 0:02:59]} 6. Be2 {[%clk 0:02:48]}  Nc6 {[%clk 0:02:59]} 7. O-O {[%clk 0:02:48]}  Qe7 {[%clk 0:02:59]} 8. c4 {[%clk 0:02:45]}  O-O-O {[%clk 0:02:59]} 9. Qa4 {[%clk 0:02:44]}  Kb8 {[%clk 0:02:59]} 10. Nc3 {[%clk 0:02:41]}  Ne5 {[%clk 0:02:59]} 11. Nb5 {[%clk 0:02:21]}  Bc5 {[%clk 0:02:42]} 12. b4 {[%clk 0:02:10]}  Bxf3 {[%clk 0:02:14]} 13. gxf3 {[%clk 0:01:53]}  c6 {[%clk 0:01:55]} 14. bxc5 {[%clk 0:01:50]}  cxb5 {[%clk 0:01:55]} 15. cxb5 {[%clk 0:01:39]}  Qxc5 {[%clk 0:01:53]} 16. Ba3 {[%clk 0:01:33]}  Qb6 {[%clk 0:01:50]} 17. f4 {[%clk 0:01:29]}  Neg4 {[%clk 0:01:22]} 18. Bf3 {[%clk 0:00:51]}  g5 {[%clk 0:01:16]} 19. Rac1 {[%clk 0:00:43]}  Rc8 {[%clk 0:01:02]} 20. Rxc8+ {[%clk 0:00:25]}  Rxc8 {[%clk 0:01:01]} 21. fxg5 {[%clk 0:00:23]}  Ne5 {[%clk 0:01:01]} 22. Qf4 {[%clk 0:00:21]}  Nd7 {[%clk 0:01:01]} 23. Bb2 {[%clk 0:00:20]}  Re8 {[%clk 0:01:00]} 24. Rd1 {[%clk 0:00:19]}  f6 {[%clk 0:00:58]} 25. gxf6 {[%clk 0:00:19]}  Qxf6 {[%clk 0:00:56]} 26. Qxf6 {[%clk 0:00:17]}  Nxf6 {[%clk 0:00:56]} 27. Bxe5+ {[%clk 0:00:14]}  Rxe5 {[%clk 0:00:55]} 28. a4 {[%clk 0:00:14]}  Kc7 {[%clk 0:00:51]} 29. h4 {[%clk 0:00:14]}  h5 {[%clk 0:00:50]} 30. Kg2 {[%clk 0:00:14]}  Kb6 {[%clk 0:00:45]} 31. Be2 {[%clk 0:00:14]}  Ka5 {[%clk 0:00:44]} 32. Rd4 {[%clk 0:00:15]}  Rc5 {[%clk 0:00:39]} 33. Rf4 {[%clk 0:00:14]}  Nd5 {[%clk 0:00:38]} 34. Rf5 {[%clk 0:00:15]}  Nxe3+ {[%clk 0:00:38]} 35. fxe3 {[%clk 0:00:15]}  Rxf5 {[%clk 0:00:39]} 36. Kg3 {[%clk 0:00:15]}  Rc5 {[%clk 0:00:38]} 37. Kf4 {[%clk 0:00:14]}  Kxa4 {[%clk 0:00:38]} 38. e4 {[%clk 0:00:14]}  Kb4 {[%clk 0:00:37]} 39. e5 {[%clk 0:00:14]}  a5 {[%clk 0:00:36]} 40. Bxh5 {[%clk 0:00:14]}  a4 {[%clk 0:00:33]} 41. Bf7 {[%clk 0:00:13]}  a3 {[%clk 0:00:33]} 42. h5 {[%clk 0:00:13]}  Rc4+ {[%clk 0:00:31]} 43. Bxc4 {[%clk 0:00:12]}  Kxc4 {[%clk 0:00:31]} 44. h6 {[%clk 0:00:12]}  a2 {[%clk 0:00:32]} 45. h7 {[%clk 0:00:13]}  a1=Q {[%clk 0:00:32]} 46. h8=Q {[%clk 0:00:13]}  Qf1+ {[%clk 0:00:31]} 47. Kg4 {[%clk 0:00:13]}  Qg2+ {[%clk 0:00:31]} 48. Kf5 {[%clk 0:00:14]}  Qf3+ {[%clk 0:00:31]} 49. Ke6 {[%clk 0:00:14]}  Qd5+ {[%clk 0:00:31]} 50. Ke7 {[%clk 0:00:15]}  Qc5+ {[%clk 0:00:30]} 51. Kf7 {[%clk 0:00:15]}  Qc7+ {[%clk 0:00:27]} 52. Kf6 {[%clk 0:00:15]}  Qb6+ {[%clk 0:00:27]} 53. e6 {[%clk 0:00:16]}  Qd4+ {[%clk 0:00:25]} 54. Kf7 {[%clk 0:00:15]}  Qxh8 {[%clk 0:00:25]} 55. e7 {[%clk 0:00:15]}  Kxb5 {[%clk 0:00:25]} 56. e8=Q+ {[%clk 0:00:16]}  Qxe8+ {[%clk 0:00:25]} 57. Kxe8 {[%clk 0:00:17]}  Kc4 {[%clk 0:00:25]} 58. Ke7 {[%clk 0:00:17]}  b5 {[%clk 0:00:25]} 59. Kd6 {[%clk 0:00:18]}  b4 {[%clk 0:00:26]} 60. Ke5 {[%clk 0:00:15]}  b3 {[%clk 0:00:27]} 0-1


[Site "https://www.chess.com"]

[Event "Titled Tuesday Blitz July 25 Late 2023"]
[White "kiwibobo"]
[Black "Liu, Casper"]
[BlackFideId "1454153"]
[WhiteElo "2329"]
[BlackElo "2470"]
[Result "1-0"]
[Round "5"]
[TimeControl "180+2"]
[Date "2023.07.25"]
[WhiteClock "0:02:11"]
[BlackClock "0:01:01"]
[Board "164"]

1. e4 {[%clk 0:03:00]}  c5 {[%clk 0:02:57]} 2. Nf3 {[%clk 0:02:58]}  d6 {[%clk 0:02:57]} 3. d4 {[%clk 0:02:58]}  Nf6 {[%clk 0:02:58]} 4. Nc3 {[%clk 0:02:57]}  cxd4 {[%clk 0:02:59]} 5. Nxd4 {[%clk 0:02:58]}  Nc6 {[%clk 0:03:00]} 6. Be2 {[%clk 0:02:58]}  e5 {[%clk 0:02:59]} 7. Nf3 {[%clk 0:02:58]}  Be7 {[%clk 0:02:59]} 8. Bg5 {[%clk 0:02:58]}  O-O {[%clk 0:02:59]} 9. Bxf6 {[%clk 0:02:58]}  Bxf6 {[%clk 0:03:00]} 10. O-O {[%clk 0:02:58]}  Be6 {[%clk 0:03:01]} 11. Nd5 {[%clk 0:02:58]}  Rc8 {[%clk 0:03:01]} 12. c3 {[%clk 0:02:57]}  Bxd5 {[%clk 0:02:51]} 13. Qxd5 {[%clk 0:02:58]}  Qc7 {[%clk 0:02:48]} 14. Rfd1 {[%clk 0:02:53]}  Rfd8 {[%clk 0:02:47]} 15. Nd2 {[%clk 0:02:52]}  Ne7 {[%clk 0:02:47]} 16. Qb3 {[%clk 0:02:52]}  d5 {[%clk 0:02:47]} 17. exd5 {[%clk 0:02:53]}  Nxd5 {[%clk 0:02:47]} 18. Ne4 {[%clk 0:02:52]}  Qc6 {[%clk 0:02:35]} 19. Bf3 {[%clk 0:02:34]}  Be7 {[%clk 0:01:01]} 20. Ng3 {[%clk 0:02:11]} 1-0


[Site "https://www.chess.com"]

[Event "Titled Tuesday Blitz July 25 Late 2023"]
[White "Yeritsyan, Hayk"]
[Black "Chemin, Justo Reinaldo"]
[WhiteFideId "13307320"]
[BlackFideId "2101580"]
[WhiteElo "2461"]
[BlackElo "2251"]
[Result "1-0"]
[Round "5"]
[TimeControl "180+2"]
[Date "2023.07.25"]
[WhiteClock "0:02:37"]
[BlackClock "0:01:30"]
[Board "165"]

1. d4 {[%clk 0:02:47]}  e6 {[%clk 0:02:59]} 2. Nf3 {[%clk 0:02:46]}  d5 {[%clk 0:03:00]} 3. e3 {[%clk 0:02:46]}  c5 {[%clk 0:02:59]} 4. Bd3 {[%clk 0:02:47]}  Nc6 {[%clk 0:02:58]} 5. c3 {[%clk 0:02:47]}  Nf6 {[%clk 0:02:58]} 6. Nbd2 {[%clk 0:02:47]}  Bd6 {[%clk 0:02:58]} 7. Qe2 {[%clk 0:02:48]}  O-O {[%clk 0:02:56]} 8. O-O {[%clk 0:02:48]}  b6 {[%clk 0:02:56]} 9. e4 {[%clk 0:02:48]}  dxe4 {[%clk 0:02:53]} 10. Nxe4 {[%clk 0:02:49]}  Bb7 {[%clk 0:02:45]} 11. Nxf6+ {[%clk 0:02:49]}  Qxf6 {[%clk 0:02:20]} 12. dxc5 {[%clk 0:02:44]}  bxc5 {[%clk 0:02:12]} 13. Bg5 {[%clk 0:02:43]}  Ne5 {[%clk 0:01:47]} 14. Bxf6 {[%clk 0:02:39]}  Nxf3+ {[%clk 0:01:47]} 15. gxf3 {[%clk 0:02:38]}  gxf6 {[%clk 0:01:30]} 16. Be4 {[%clk 0:02:37]} 1-0


[Site "https://www.chess.com"]

[Event "Titled Tuesday Blitz July 25 Late 2023"]
[White "Bazilius, Augustinas"]
[Black "Floresvillar Gonzalez, Luis Migu"]
[WhiteFideId "12832251"]
[BlackFideId "5100542"]
[WhiteElo "2382"]
[BlackElo "2102"]
[Result "1-0"]
[Round "5"]
[TimeControl "180+2"]
[Date "2023.07.25"]
[WhiteClock "0:00:03"]
[BlackClock "0:00:00"]
[Board "166"]

1. d4 {[%clk 0:03:00]}  d5 {[%clk 0:02:58]} 2. c4 {[%clk 0:03:01]}  c6 {[%clk 0:02:58]} 3. Nf3 {[%clk 0:02:59]}  Nf6 {[%clk 0:02:57]} 4. g3 {[%clk 0:02:59]}  Bg4 {[%clk 0:02:55]} 5. Bg2 {[%clk 0:02:58]}  e6 {[%clk 0:02:54]} 6. h3 {[%clk 0:02:54]}  Bxf3 {[%clk 0:02:51]} 7. Bxf3 {[%clk 0:02:55]}  Nbd7 {[%clk 0:02:49]} 8. O-O {[%clk 0:02:49]}  Bd6 {[%clk 0:02:48]} 9. Qc2 {[%clk 0:02:48]}  O-O {[%clk 0:02:47]} 10. b3 {[%clk 0:02:46]}  Rc8 {[%clk 0:02:47]} 11. Nc3 {[%clk 0:02:43]}  Re8 {[%clk 0:02:44]} 12. e4 {[%clk 0:02:43]}  dxe4 {[%clk 0:02:44]} 13. Nxe4 {[%clk 0:02:44]}  Nxe4 {[%clk 0:02:43]} 14. Bxe4 {[%clk 0:02:45]}  Nf6 {[%clk 0:02:41]} 15. Bg2 {[%clk 0:02:32]}  e5 {[%clk 0:02:36]} 16. Bb2 {[%clk 0:02:28]}  Qc7 {[%clk 0:02:29]} 17. c5 {[%clk 0:02:17]}  Bf8 {[%clk 0:02:15]} 18. dxe5 {[%clk 0:02:17]}  Nd7 {[%clk 0:02:15]} 19. Be4 {[%clk 0:01:38]}  h6 {[%clk 0:02:07]} 20. Bf5 {[%clk 0:01:34]}  Rcd8 {[%clk 0:02:01]} 21. Bxd7 {[%clk 0:00:57]}  Qxd7 {[%clk 0:02:00]} 22. Kh2 {[%clk 0:00:48]}  Qd5 {[%clk 0:01:49]} 23. b4 {[%clk 0:00:44]}  a5 {[%clk 0:01:49]} 24. a3 {[%clk 0:00:43]}  axb4 {[%clk 0:01:33]} 25. axb4 {[%clk 0:00:44]}  Qd2 {[%clk 0:01:32]} 26. Qxd2 {[%clk 0:00:34]}  Rxd2 {[%clk 0:01:31]} 27. Bc3 {[%clk 0:00:34]}  Rc2 {[%clk 0:01:29]} 28. Rac1 {[%clk 0:00:34]}  Ra2 {[%clk 0:01:14]} 29. Kg2 {[%clk 0:00:29]}  g5 {[%clk 0:01:13]} 30. Ra1 {[%clk 0:00:25]}  Rc2 {[%clk 0:01:12]} 31. Rfc1 {[%clk 0:00:24]}  Rxc1 {[%clk 0:01:07]} 32. Rxc1 {[%clk 0:00:23]}  Bg7 {[%clk 0:01:08]} 33. Rd1 {[%clk 0:00:17]}  Re7 {[%clk 0:00:56]} 34. f4 {[%clk 0:00:15]}  Kh7 {[%clk 0:00:52]} 35. Rd8 {[%clk 0:00:09]}  Kg6 {[%clk 0:00:47]} 36. Kf3 {[%clk 0:00:09]}  h5 {[%clk 0:00:39]} 37. Rg8 {[%clk 0:00:05]}  Kh7 {[%clk 0:00:38]} 38. Rd8 {[%clk 0:00:04]}  gxf4 {[%clk 0:00:33]} 39. gxf4 {[%clk 0:00:04]}  Kg6 {[%clk 0:00:32]} 40. Rg8 {[%clk 0:00:04]}  Kh7 {[%clk 0:00:31]} 41. Rd8 {[%clk 0:00:04]}  Kg6 {[%clk 0:00:31]} 42. Rd6+ {[%clk 0:00:05]}  Kf5 {[%clk 0:00:25]} 43. Rd1 {[%clk 0:00:04]}  Bh6 {[%clk 0:00:22]} 44. Rd4 {[%clk 0:00:01]}  f6 {[%clk 0:00:21]} 45. exf6 {[%clk 0:00:01]}  Kxf6 {[%clk 0:00:18]} 46. Rd6+ {[%clk 0:00:01]}  Kf5 {[%clk 0:00:07]} 47. Rxh6 {[%clk 0:00:02]}  Re6 {[%clk 0:00:01]} 48. Rxe6 {[%clk 0:00:02]}  Kxe6 {[%clk 0:00:00]} 49. Ke4 {[%clk 0:00:03]} 1-0


[Site "https://www.chess.com"]

[Event "Titled Tuesday Blitz July 25 Late 2023"]
[White "Biliy, Vadim"]
[Black "Bongo Akanga Ndjila, Barthelemy"]
[WhiteFideId "14114127"]
[BlackFideId "10609431"]
[WhiteElo "2302"]
[BlackElo "2050"]
[Result "0-1"]
[Round "5"]
[TimeControl "180+2"]
[Date "2023.07.25"]
[WhiteClock "0:01:21"]
[BlackClock "0:01:25"]
[Board "173"]

1. d4 {[%clk 0:03:00]}  d5 {[%clk 0:02:54]} 2. Nf3 {[%clk 0:03:00]}  Nf6 {[%clk 0:02:54]} 3. e3 {[%clk 0:03:00]}  e6 {[%clk 0:02:53]} 4. c4 {[%clk 0:03:01]}  Bd6 {[%clk 0:02:52]} 5. Nc3 {[%clk 0:03:01]}  O-O {[%clk 0:02:51]} 6. Be2 {[%clk 0:02:57]}  c6 {[%clk 0:02:51]} 7. O-O {[%clk 0:02:56]}  Nbd7 {[%clk 0:02:51]} 8. b3 {[%clk 0:02:55]}  e5 {[%clk 0:02:50]} 9. dxe5 {[%clk 0:02:53]}  Nxe5 {[%clk 0:02:51]} 10. cxd5 {[%clk 0:02:50]}  Nxf3+ {[%clk 0:02:44]} 11. Bxf3 {[%clk 0:02:49]}  Be5 {[%clk 0:02:44]} 12. Bb2 {[%clk 0:02:43]}  cxd5 {[%clk 0:02:33]} 13. Na4 {[%clk 0:02:30]}  Bxb2 {[%clk 0:02:30]} 14. Nxb2 {[%clk 0:02:30]}  Be6 {[%clk 0:02:29]} 15. Nd3 {[%clk 0:02:24]}  Ne4 {[%clk 0:02:27]} 16. Nf4 {[%clk 0:02:16]}  Rc8 {[%clk 0:02:03]} 17. Nxe6 {[%clk 0:02:09]}  fxe6 {[%clk 0:02:00]} 18. Bxe4 {[%clk 0:02:08]}  dxe4 {[%clk 0:02:00]} 19. Qg4 {[%clk 0:02:07]}  Qd5 {[%clk 0:01:53]} 20. Rad1 {[%clk 0:01:57]}  Qe5 {[%clk 0:01:53]} 21. Rd4 {[%clk 0:01:55]}  Qf5 {[%clk 0:01:26]} 22. Qxe4 {[%clk 0:01:21]}  Qxf2+ {[%clk 0:01:25]} 0-1


[Site "https://www.chess.com"]

[Event "Titled Tuesday Blitz July 25 Late 2023"]
[White "Martinez Alcantara, Jose Eduardo"]
[Black "Vachier-Lagrave, Maxime"]
[WhiteFideId "3805662"]
[BlackFideId "623539"]
[WhiteElo "3007"]
[BlackElo "3160"]
[Result "0-1"]
[Round "6"]
[TimeControl "180+2"]
[Date "2023.07.25"]
[WhiteClock "0:00:00"]
[BlackClock "0:00:07"]
[Board "1"]

1. e4 {[%clk 0:03:00]}  c6 {[%clk 0:02:56]} 2. d4 {[%clk 0:03:00]}  d5 {[%clk 0:02:57]} 3. e5 {[%clk 0:03:00]}  Bf5 {[%clk 0:02:57]} 4. h4 {[%clk 0:03:00]}  h5 {[%clk 0:02:57]} 5. Bd3 {[%clk 0:03:00]}  Bxd3 {[%clk 0:02:57]} 6. Qxd3 {[%clk 0:03:01]}  e6 {[%clk 0:02:58]} 7. Nf3 {[%clk 0:03:00]}  Qa5+ {[%clk 0:02:57]} 8. Nc3 {[%clk 0:03:00]}  Qa6 {[%clk 0:02:57]} 9. Qd1 {[%clk 0:02:59]}  Ne7 {[%clk 0:02:55]} 10. Ne2 {[%clk 0:02:57]}  Nd7 {[%clk 0:02:45]} 11. O-O {[%clk 0:02:48]}  c5 {[%clk 0:02:33]} 12. c3 {[%clk 0:02:46]}  Rc8 {[%clk 0:02:30]} 13. Ng3 {[%clk 0:02:41]}  g6 {[%clk 0:02:20]} 14. Bg5 {[%clk 0:02:38]}  Nc6 {[%clk 0:02:13]} 15. Qd2 {[%clk 0:02:33]}  Bg7 {[%clk 0:02:02]} 16. Rfe1 {[%clk 0:02:29]}  Kf8 {[%clk 0:01:56]} 17. Ne2 {[%clk 0:02:08]}  Kg8 {[%clk 0:01:50]} 18. Nf4 {[%clk 0:02:06]}  cxd4 {[%clk 0:01:44]} 19. cxd4 {[%clk 0:02:05]}  Kh7 {[%clk 0:01:45]} 20. b3 {[%clk 0:01:58]}  Rhe8 {[%clk 0:01:41]} 21. Rad1 {[%clk 0:01:55]}  Ne7 {[%clk 0:01:29]} 22. g4 {[%clk 0:01:28]}  hxg4 {[%clk 0:01:28]} 23. Nh2 {[%clk 0:01:29]}  Nf5 {[%clk 0:01:24]} 24. Nxg4 {[%clk 0:01:27]}  Rh8 {[%clk 0:01:24]} 25. Rc1 {[%clk 0:01:20]}  Rc6 {[%clk 0:01:17]} 26. h5 {[%clk 0:01:11]}  gxh5 {[%clk 0:00:53]} 27. Nxh5 {[%clk 0:01:12]}  Qb6 {[%clk 0:00:49]} 28. Rcd1 {[%clk 0:01:00]}  Kg8 {[%clk 0:00:40]} 29. Nxg7 {[%clk 0:00:58]}  Kxg7 {[%clk 0:00:39]} 30. Kg2 {[%clk 0:00:55]}  Kf8 {[%clk 0:00:37]} 31. Rh1 {[%clk 0:00:43]}  Rg8 {[%clk 0:00:37]} 32. f4 {[%clk 0:00:33]}  Ke8 {[%clk 0:00:28]} 33. Kf3 {[%clk 0:00:28]}  Qc7 {[%clk 0:00:25]} 34. Rc1 {[%clk 0:00:17]}  Nxd4+ {[%clk 0:00:23]} 35. Kf2 {[%clk 0:00:18]}  Qb6 {[%clk 0:00:18]} 36. Kg2 {[%clk 0:00:16]}  Nf5 {[%clk 0:00:17]} 37. Rxc6 {[%clk 0:00:14]}  bxc6 {[%clk 0:00:18]} 38. Rc1 {[%clk 0:00:14]}  Rh8 {[%clk 0:00:14]} 39. Qc3 {[%clk 0:00:10]}  c5 {[%clk 0:00:14]} 40. Qf3 {[%clk 0:00:10]}  Kf8 {[%clk 0:00:11]} 41. Qd3 {[%clk 0:00:08]}  Qa5 {[%clk 0:00:11]} 42. Qe2 {[%clk 0:00:03]}  Qb4 {[%clk 0:00:09]} 43. Nf2 {[%clk 0:00:03]}  Qd4 {[%clk 0:00:08]} 44. Re1 {[%clk 0:00:02]}  Rg8 {[%clk 0:00:07]} 45. Kh2 {[%clk 0:00:01]}  Rh8+ {[%clk 0:00:07]} 46. Kg2 {[%clk 0:00:02]}  Nh4+ {[%clk 0:00:07]} 47. Kg3 {[%clk 0:00:02]}  Qc3+ {[%clk 0:00:07]} 48. Qe3 {[%clk 0:00:00]}  Nf5+ {[%clk 0:00:07]} 0-1


[Site "https://www.chess.com"]

[Event "Titled Tuesday Blitz July 25 Late 2023"]
[White "Duda, Jan-Krzysztof"]
[Black "Kollars, Dmitrij"]
[WhiteFideId "1170546"]
[BlackFideId "12909572"]
[WhiteElo "3036"]
[BlackElo "2998"]
[Result "1-0"]
[Round "6"]
[TimeControl "180+2"]
[Date "2023.07.25"]
[WhiteClock "0:00:51"]
[BlackClock "0:00:04"]
[Board "2"]

1. b3 {[%clk 0:03:00]}  e5 {[%clk 0:02:59]} 2. Bb2 {[%clk 0:03:01]}  Nc6 {[%clk 0:03:00]} 3. c4 {[%clk 0:03:02]}  Nge7 {[%clk 0:02:59]} 4. a3 {[%clk 0:02:58]}  d5 {[%clk 0:02:58]} 5. cxd5 {[%clk 0:02:57]}  Nxd5 {[%clk 0:02:59]} 6. e3 {[%clk 0:02:57]}  Be6 {[%clk 0:02:59]} 7. Qc2 {[%clk 0:02:55]}  Qd7 {[%clk 0:02:57]} 8. Nf3 {[%clk 0:02:55]}  f6 {[%clk 0:02:57]} 9. d3 {[%clk 0:02:44]}  g5 {[%clk 0:02:50]} 10. Be2 {[%clk 0:02:37]}  h5 {[%clk 0:02:49]} 11. b4 {[%clk 0:02:35]}  a6 {[%clk 0:02:28]} 12. Nbd2 {[%clk 0:02:32]}  g4 {[%clk 0:02:25]} 13. Nh4 {[%clk 0:02:32]}  Rg8 {[%clk 0:02:23]} 14. Ne4 {[%clk 0:02:31]}  O-O-O {[%clk 0:02:18]} 15. O-O {[%clk 0:02:30]}  f5 {[%clk 0:02:11]} 16. Nc5 {[%clk 0:02:27]}  Bxc5 {[%clk 0:02:11]} 17. Qxc5 {[%clk 0:02:27]}  f4 {[%clk 0:02:12]} 18. Rfc1 {[%clk 0:02:21]}  Rdf8 {[%clk 0:01:36]} 19. e4 {[%clk 0:02:15]}  Nb6 {[%clk 0:01:35]} 20. a4 {[%clk 0:02:14]}  f3 {[%clk 0:01:26]} 21. b5 {[%clk 0:01:56]}  Nd4 {[%clk 0:00:55]} 22. Bxd4 {[%clk 0:01:43]}  exd4 {[%clk 0:00:56]} 23. Bd1 {[%clk 0:01:33]}  Kb8 {[%clk 0:00:34]} 24. a5 {[%clk 0:01:33]}  Qxb5 {[%clk 0:00:21]} 25. Qxc7+ {[%clk 0:01:27]}  Ka8 {[%clk 0:00:21]} 26. Qxb6 {[%clk 0:01:22]}  Qxd3 {[%clk 0:00:21]} 27. Qxe6 {[%clk 0:01:09]}  fxg2 {[%clk 0:00:18]} 28. Bb3 {[%clk 0:01:03]}  g3 {[%clk 0:00:10]} 29. hxg3 {[%clk 0:00:58]}  Rxg3 {[%clk 0:00:11]} 30. Bd5 {[%clk 0:00:53]}  Rh3 {[%clk 0:00:04]} 31. Rc8+ {[%clk 0:00:51]} 1-0


[Site "https://www.chess.com"]

[Event "Titled Tuesday Blitz July 25 Late 2023"]
[White "Pranav, V"]
[Black "Maksimovic, Bojan"]
[WhiteFideId "25060783"]
[BlackFideId "14408120"]
[WhiteElo "3020"]
[BlackElo "2911"]
[Result "1-0"]
[Round "6"]
[TimeControl "180+2"]
[Date "2023.07.25"]
[WhiteClock "0:00:05"]
[BlackClock "0:00:03"]
[Board "3"]

1. e4 {[%clk 0:03:00]}  c5 {[%clk 0:02:59]} 2. Nf3 {[%clk 0:03:01]}  e6 {[%clk 0:02:59]} 3. d4 {[%clk 0:03:01]}  cxd4 {[%clk 0:03:00]} 4. Nxd4 {[%clk 0:03:02]}  a6 {[%clk 0:03:00]} 5. Nc3 {[%clk 0:03:02]}  b5 {[%clk 0:03:01]} 6. Bd3 {[%clk 0:03:02]}  Bb7 {[%clk 0:03:01]} 7. O-O {[%clk 0:03:03]}  Nc6 {[%clk 0:03:01]} 8. Nxc6 {[%clk 0:03:01]}  Bxc6 {[%clk 0:03:01]} 9. Re1 {[%clk 0:03:01]}  Qb8 {[%clk 0:03:00]} 10. e5 {[%clk 0:02:56]}  f5 {[%clk 0:02:48]} 11. Bg5 {[%clk 0:02:09]}  Bb4 {[%clk 0:02:36]} 12. Qh5+ {[%clk 0:02:04]}  g6 {[%clk 0:02:35]} 13. Qh4 {[%clk 0:02:04]}  Be7 {[%clk 0:02:17]} 14. Bxe7 {[%clk 0:01:46]}  Nxe7 {[%clk 0:02:17]} 15. a4 {[%clk 0:01:47]}  b4 {[%clk 0:01:46]} 16. Ne2 {[%clk 0:01:10]}  Nd5 {[%clk 0:01:40]} 17. Nd4 {[%clk 0:01:08]}  O-O {[%clk 0:01:35]} 18. a5 {[%clk 0:01:00]}  Qd8 {[%clk 0:01:30]} 19. Qxd8 {[%clk 0:00:55]}  Rfxd8 {[%clk 0:01:31]} 20. g3 {[%clk 0:00:56]}  Rdc8 {[%clk 0:01:25]} 21. f4 {[%clk 0:00:54]}  Kf7 {[%clk 0:01:25]} 22. Kf2 {[%clk 0:00:53]}  Ke7 {[%clk 0:01:22]} 23. Ke2 {[%clk 0:00:53]}  Bb7 {[%clk 0:01:03]} 24. Kd2 {[%clk 0:00:52]}  h6 {[%clk 0:00:55]} 25. h4 {[%clk 0:00:39]}  Rg8 {[%clk 0:00:49]} 26. Nb3 {[%clk 0:00:26]}  Rac8 {[%clk 0:00:48]} 27. Rh1 {[%clk 0:00:26]}  Rg7 {[%clk 0:00:30]} 28. Rh2 {[%clk 0:00:23]}  Kf7 {[%clk 0:00:31]} 29. Nd4 {[%clk 0:00:20]}  Rcg8 {[%clk 0:00:28]} 30. Rf1 {[%clk 0:00:17]}  Ke7 {[%clk 0:00:28]} 31. Rff2 {[%clk 0:00:13]}  Rc8 {[%clk 0:00:22]} 32. Rf1 {[%clk 0:00:12]}  Rc5 {[%clk 0:00:22]} 33. Ra1 {[%clk 0:00:13]}  Rc8 {[%clk 0:00:23]} 34. Rf1 {[%clk 0:00:12]}  Rf8 {[%clk 0:00:23]} 35. Rff2 {[%clk 0:00:12]}  Rfg8 {[%clk 0:00:20]} 36. Rf1 {[%clk 0:00:12]}  Rc8 {[%clk 0:00:21]} 37. Ra1 {[%clk 0:00:10]}  Rc5 {[%clk 0:00:21]} 38. Nb3 {[%clk 0:00:10]}  Rc8 {[%clk 0:00:21]} 39. Nd4 {[%clk 0:00:10]}  Rf8 {[%clk 0:00:22]} 40. Ra4 {[%clk 0:00:09]}  g5 {[%clk 0:00:17]} 41. hxg5 {[%clk 0:00:09]}  hxg5 {[%clk 0:00:18]} 42. Ne2 {[%clk 0:00:07]}  gxf4 {[%clk 0:00:17]} 43. gxf4 {[%clk 0:00:08]}  Rfg8 {[%clk 0:00:17]} 44. c4 {[%clk 0:00:06]}  bxc3+ {[%clk 0:00:16]} 45. bxc3 {[%clk 0:00:07]}  Rg2 {[%clk 0:00:16]} 46. Rh7+ {[%clk 0:00:05]}  Kd8 {[%clk 0:00:13]} 47. Rd4 {[%clk 0:00:03]}  Bc6 {[%clk 0:00:11]} 48. Bxa6 {[%clk 0:00:03]}  Nxc3 {[%clk 0:00:09]} 49. Kxc3 {[%clk 0:00:02]}  Kc7 {[%clk 0:00:09]} 50. Bd3 {[%clk 0:00:02]}  Rb8 {[%clk 0:00:07]} 51. Rh6 {[%clk 0:00:01]}  Ra8 {[%clk 0:00:07]} 52. a6 {[%clk 0:00:02]}  Rb8 {[%clk 0:00:07]} 53. Nc1 {[%clk 0:00:02]}  Rgb2 {[%clk 0:00:06]} 54. Bc4 {[%clk 0:00:02]}  Rb1 {[%clk 0:00:06]} 55. Nd3 {[%clk 0:00:02]}  Ra1 {[%clk 0:00:05]} 56. Rh7 {[%clk 0:00:02]}  Ra3+ {[%clk 0:00:05]} 57. Kd2 {[%clk 0:00:03]}  Ra4 {[%clk 0:00:05]} 58. Nc5 {[%clk 0:00:03]}  Ra3 {[%clk 0:00:02]} 59. Nxd7 {[%clk 0:00:03]}  Rd8 {[%clk 0:00:01]} 60. Nc5+ {[%clk 0:00:03]}  Kb6 {[%clk 0:00:01]} 61. Rxd8 {[%clk 0:00:03]}  Kxc5 {[%clk 0:00:02]} 62. Bxe6 {[%clk 0:00:04]}  Be4 {[%clk 0:00:02]} 63. Rc7+ {[%clk 0:00:03]}  Kb6 {[%clk 0:00:02]} 64. Rc3 {[%clk 0:00:04]}  Ra2+ {[%clk 0:00:03]} 65. Bxa2 {[%clk 0:00:04]}  Bc2 {[%clk 0:00:02]} 66. Kxc2 {[%clk 0:00:03]}  Ka7 {[%clk 0:00:03]} 67. Rb3 {[%clk 0:00:03]}  Kxa6 {[%clk 0:00:03]} 68. Rd7 {[%clk 0:00:04]}  Ka5 {[%clk 0:00:03]} 69. Ra7# {[%clk 0:00:05]} 1-0


[Site "https://www.chess.com"]